[Event "CRO-ch Youth U17 2020"]
[Site "Vinkovci"]
[Date "2020.07.30"]
[Round "4.2"]
[White "Karlusic, Luka"]
[Black "Mrvac, Petar"]
[Result "1-0"]
[ECO "D36"]
[WhiteElo "2169"]
[BlackElo "1848"]
[Annotator "ChessBase"]
[PlyCount "61"]
[EventDate "2020.07.28"]
[EventType "swiss"]
[EventCountry "CRO"]
[SourceTitle "playchess.com"]
[Source "ChessBase"]
[SourceQuality "1"]
[TimeControl "5400+30"]

1. d4 {[%emt 0:00:30]} Nf6 {[%emt 0:00:30]} 2. c4 {[%emt 0:00:00]} e6 {[%emt 0:00:00]} 3. Nc3 {[%emt 0:00:00]} d5 {[%emt 0:00:00]} 4. cxd5 {[%emt 0:00:30]} exd5 {[%emt 0:00:30]} 5. Bg5 {[%emt 0:00:30]} Be7 {[%emt 0:00:00]} 6. e3 {[%emt 0:00:00]} O-O {[%emt 0:00:00]} 7. Bd3 {[%emt 0:00:00]} c6 {[%emt 0:00:30]} 8. Qc2 {[%emt 0:00:30]} h6 {[%emt 0:01:30]} 9. Bh4 {[%emt 0:00:30]} Nbd7 {[%emt 0:02:30]} 10. Nge2 {[%emt 0:01:30]} Re8 {[%emt 0:05:30]} 11. O-O {[%emt 0:00:30]} Nf8 {[%emt 0:02:30]} 12. Rae1 {[%emt 0:05:30]} Ng4 {[%emt 0:13:30]} 13. Bxe7 {[%emt 0:06:30]} Qxe7 {[%emt 0:01:30]} 14. h3 {[%emt 0:07:30]} Nf6 {[%emt 0:01:30]} 15. Ng3 {[%emt 0:06:30]} Bd7 {[%emt 0:03:30]} 16. Na4 {[%emt 0:05:30]} g6 {[%emt 0:13:30]} 17. Nc5 {[%emt 0:07:30]} Rab8 {[%emt 0:02:30]} 18. f3 {[%emt 0:05:30]} Qd6 {[%emt 0:12:30]} 19. Qf2 {[%emt 0:01:30]} Ne6 {[%emt 0:13:30]} 20. Nxe6 {[%emt 0:08:30]} Qxe6 {[%emt 0:00:30]} 21. e4 {[%emt 0:07:30]} Nh7 {[%emt 0:08:27]} 22. h4 {[%emt 0:11:30]} Kg7 {[%emt 0:05:43]} 23. Ne2 {[%emt 0:06:29]} Rf8 {[%emt 0:02:28]} 24. h5 {[%emt 0:06:59]} g5 {[%emt 0:02:06]} 25. Ng3 {[%emt 0:02:50]} Qd6 {[%emt 0:01:54]} 26. e5 {[%emt 0:00:59]} Qe7 {[%emt 0:01:14]} 27. Qc2 {[%emt 0:01:31]} Rh8 {[%emt 0:00:30]} 28. Bf5 {[%emt 0:00:48]} Be6 {[%emt 0:00:22]} 29. Bxe6 {[%emt 0:02:37]} fxe6 {[%emt 0:00:06]} 30. Qg6+ {[%emt 0:00:14]} Kf8 {[%emt 0:00:22]} 31. f4 {[%emt 0:00:37]} 1-0

[Event "CRO-ch Youth U17 2020"]
[Site "Vinkovci"]
[Date "2020.07.30"]
[Round "4.3"]
[White "Troselj, Ivan"]
[Black "Damjanovic, Stjepan"]
[Result "1-0"]
[ECO "B22"]
[WhiteElo "1857"]
[BlackElo "1867"]
[Annotator "NA"]
[PlyCount "65"]
[EventDate "2020.07.28"]
[EventType "swiss"]
[EventCountry "CRO"]
[SourceTitle "playchess.com"]
[Source "ChessBase"]
[SourceQuality "1"]
[TimeControl "5400+30"]

1. e4 {[%emt 0:00:30]} c5 {[%emt 0:00:30]} 2. Nf3 {[%emt 0:00:00]} Nc6 {[%emt 0:00:00]} 3. c3 {[%emt 0:00:00]} d5 {[%emt 0:00:00]} 4. exd5 {[%emt 0:00:00]} Qxd5 {[%emt 0:00:30]} 5. d4 {[%emt 0:00:00]} g6 {[%emt 0:00:30]} 6. Be3 {[%emt 0:01:30] B22: Sicilian: 2 c3.} Bg7 {[%emt 0:00:30]} 7. Be2 {[%emt 0:00:00]} cxd4 {[%emt 0:00:30]} 8. cxd4 {[%emt 0:00:00]} Nh6 {[%emt 0:01:30]} 9. Nc3 {[%emt 0:00:30]} Qa5 {[%emt 0:00:30]} 10. d5 {[%emt 0:05:30] [#]} Nb4 $146 {[%emt 0:02:30]} ({Predecessor:} 10... Nb8 11. Bxh6 Bxh6 12. Qd4 O-O 13. O-O Bg7 14. Qh4 Qd8 15. Rad1 Na6 16. Rfe1 Re8 {½-½ (25) Szegi,T (2092)-Janko,Z (1960) Dunajska Streda 1999}) 11. Bb5+ {[%emt 0:01:30]} Bd7 {[%emt 0:02:30]} 12. Bxd7+ {[%emt 0:00:30]} Kxd7 {[%emt 0:00:30]} 13. Bxh6 {[%emt 0:00:30]} Bxh6 {[%emt 0:00:30]} 14. a3 {[%emt 0:00:00]} Na6 {[%emt 0:00:30]} 15. Ne5+ {[%emt 0:01:00]} Ke8 {[%emt 0:00:00]} 16. O-O {[%emt 0:00:30]} Bg7 {[%emt 0:01:00]} 17. Re1 {[%emt 0:00:30]} Bxe5 {[%emt 0:09:30]} 18. Rxe5 {[%emt 0:00:30]} f6 {[%emt 0:00:30]} 19. Re3 {[%emt 0:04:30]} Kf7 {[%emt 0:01:30]} 20. d6 {[%emt 0:01:30]} exd6 {[%emt 0:25:30]} 21. Qb3+ {[%emt 0:04:30]} Kf8 {[%emt 0:00:30]} 22. Qxb7 $18 {[%emt 0:00:00]} Nc7 {[%emt 0:08:30]} 23. Nd5 {[%emt 0:05:00]} Nxd5 {[%emt 0:11:30]} 24. Qxa8+ {[%emt 0:00:00]} Kg7 {[%emt 0:00:00]} 25. Qb7+ {[%emt 0:00:00]} Kh6 {[%emt 0:00:00]} 26. Rh3+ {[%emt 0:00:30]} Kg5 {[%emt 0:00:00]} 27. b4 {[%emt 0:00:30]} Qa4 {[%emt 0:02:00]} 28. Qxd5+ {[%emt 0:00:30]} f5 {[%emt 0:00:00]} 29. f4+ {[%emt 0:00:30]} Kxf4 {[%emt 0:00:00]} 30. Qd2+ {[%emt 0:00:30]} Ke5 {[%emt 0:00:30]} 31. Re1+ {[%emt 0:00:30]} Kf6 {[%emt 0:00:30]} 32. Qd4+ {[%emt 0:00:00]} Kf7 {[%emt 0:00:30]} 33. Qxh8 {[%emt 0:00:00]} 1-0

[Event "CRO-ch Youth U17 2020"]
[Site "Vinkovci"]
[Date "2020.07.30"]
[Round "4.4"]
[White "Mazuran, Gabrijel"]
[Black "Ljubicic, Mario"]
[Result "0-1"]
[ECO "E71"]
[WhiteElo "2053"]
[BlackElo "1966"]
[Annotator "ChessBase"]
[PlyCount "88"]
[EventDate "2020.07.28"]
[EventType "swiss"]
[EventCountry "CRO"]
[SourceTitle "playchess.com"]
[Source "ChessBase"]
[SourceQuality "1"]
[TimeControl "5400+30"]

1. d4 {[%emt 0:00:30]} Nf6 {[%emt 0:00:30]} 2. c4 {[%emt 0:00:00]} g6 {[%emt 0:00:00]} 3. Nc3 {[%emt 0:00:00]} Bg7 {[%emt 0:00:00]} 4. e4 {[%emt 0:00:30]} d6 {[%emt 0:00:30]} 5. h3 {[%emt 0:00:00]} O-O {[%emt 0:00:00]} 6. Be3 {[%emt 0:01:00]} e5 {[%emt 0:00:00]} 7. d5 {[%emt 0:00:00]} a5 {[%emt 0:00:30]} 8. g4 {[%emt 0:03:00]} Na6 {[%emt 0:00:00]} 9. Nge2 {[%emt 0:01:30]} Nd7 {[%emt 0:02:00]} 10. g5 {[%emt 0:06:30]} Ndc5 {[%emt 0:07:30]} 11. Ng3 {[%emt 0:14:30]} f5 {[%emt 0:11:30]} 12. gxf6 {[%emt 0:03:30]} Bxf6 {[%emt 0:00:30]} 13. Qd2 {[%emt 0:02:30]} Nb4 {[%emt 0:01:30]} 14. O-O-O {[%emt 0:04:30]} Nxa2+ {[%emt 0:00:30]} 15. Kb1 {[%emt 0:00:30]} Nb3 {[%emt 0:07:30]} 16. Qc2 {[%emt 0:02:30]} Nxc3+ {[%emt 0:00:30]} 17. bxc3 {[%emt 0:05:30]} a4 {[%emt 0:00:00]} 18. Be2 {[%emt 0:02:30]} Bd7 {[%emt 0:06:00]} 19. Rdg1 {[%emt 0:07:30]} Kh8 {[%emt 0:06:30]} 20. h4 {[%emt 0:05:30]} Bxh4 {[%emt 0:01:30]} 21. Rg2 {[%emt 0:02:30]} Bxg3 {[%emt 0:04:30]} 22. Rxg3 {[%emt 0:04:30]} Qf6 {[%emt 0:24:30]} 23. Rf3 {[%emt 0:03:30]} Qe7 {[%emt 0:00:30]} 24. Rg3 {[%emt 0:00:30]} Kg8 {[%emt 0:04:30]} 25. Bh5 {[%emt 0:11:23]} Be8 {[%emt 0:07:22]} 26. Bh6 {[%emt 0:05:15]} Rf4 {[%emt 0:01:18]} 27. Bxf4 {[%emt 0:02:31]} exf4 {[%emt 0:00:16]} 28. Rgg1 {[%emt 0:05:35]} Qxe4 {[%emt 0:00:30]} 29. Qxe4 {[%emt 0:00:13]} Nd2+ {[%emt 0:00:05]} 30. Kc2 {[%emt 0:00:07]} Nxe4 {[%emt 0:00:07]} 31. Bf3 {[%emt 0:00:16]} Nc5 {[%emt 0:01:05]} 32. Ra1 {[%emt 0:02:38]} a3 {[%emt 0:00:27]} 33. Kb1 {[%emt 0:03:10]} Bd7 {[%emt 0:01:02]} 34. Bd1 {[%emt 0:01:08]} Ne4 {[%emt 0:03:52]} 35. Kc2 {[%emt 0:01:34]} Nxf2 {[%emt 0:04:11]} 36. Rf1 {[%emt 0:00:25]} Nxd1 {[%emt 0:01:57]} 37. Kxd1 {[%emt 0:00:11]} g5 {[%emt 0:00:05]} 38. Kc2 {[%emt 0:01:00]} Bf5+ {[%emt 0:01:16]} 39. Kb3 {[%emt 0:00:13]} a2 {[%emt 0:00:12]} 40. Rxa2 {[%emt 0:00:48]} Rxa2 {[%emt 0:00:05]} 41. Kxa2 {[%emt 0:00:16]} Bd3 {[%emt 0:00:04]} 42. Rg1 {[%emt 0:00:16]} Bxc4+ {[%emt 0:00:08]} 43. Kb2 {[%emt 0:00:10]} h6 {[%emt 0:00:04]} 44. Kc2 {[%emt 0:00:27]} f3 {[%emt 0:00:22]} 0-1

[Event "CRO-ch Youth U17 2020"]
[Site "Vinkovci"]
[Date "2020.07.30"]
[Round "4.5"]
[White "Vucenovic, Damian"]
[Black "Dabic, Stjepan"]
[Result "1-0"]
[ECO "B50"]
[WhiteElo "1959"]
[BlackElo "2120"]
[Annotator "RC"]
[PlyCount "96"]
[EventDate "2020.07.28"]
[EventType "swiss"]
[EventCountry "CRO"]
[SourceTitle "playchess.com"]
[Source "ChessBase"]
[SourceQuality "1"]
[TimeControl "5400+30"]

1. e4 {[%emt 0:00:30]} c5 {[%emt 0:00:30]} 2. Nf3 {[%emt 0:00:30]} d6 {[%emt 0:00:00]} 3. c3 {[%emt 0:00:30]} Nf6 {[%emt 0:00:00]} 4. h3 {[%emt 0:01:30]} Nc6 {[%emt 0:00:30]} 5. Bd3 {[%emt 0:01:30]} d5 {[%emt 0:00:30]} 6. e5 {[%emt 0:05:30]} Nd7 {[%emt 0:00:00]} 7. Qe2 {[%emt 0:03:30]} e6 {[%emt 0:00:00]} 8. O-O {[%emt 0:00:30]} Qc7 {[%emt 0:05:30]} 9. Re1 {[%emt 0:01:30]} Be7 {[%emt 0:17:30]} 10. Bc2 {[%emt 0:04:30]} O-O {[%emt 0:15:30]} 11. a3 {[%emt 0:06:30]} a5 {[%emt 0:06:30]} 12. d4 {[%emt 0:08:30]} b6 {[%emt 0:06:30]} 13. Bg5 {[%emt 0:08:30]} f6 {[%emt 0:11:30]} 14. exf6 {[%emt 0:03:30]} Nxf6 {[%emt 0:00:30]} 15. Ne5 {[%emt 0:07:30]} Nxe5 {[%emt 0:05:30]} 16. Qxe5 {[%emt 0:07:30]} Bd6 {[%emt 0:00:30]} 17. Qe2 {[%emt 0:00:30]} Bd7 {[%emt 0:01:30]} 18. Bxf6 {[%emt 0:04:30]} Rxf6 {[%emt 0:00:30]} 19. Nd2 {[%emt 0:02:30]} cxd4 {[%emt 0:01:30]} 20. Qd3 {[%emt 0:00:30]} g6 {[%emt 0:00:30]} 21. Qxd4 {[%emt 0:02:30]} Raf8 {[%emt 0:00:30]} 22. Nf3 {[%emt 0:00:30]} Bc6 {[%emt 0:07:55]} 23. Bb3 {[%emt 0:01:30]} a4 {[%emt 0:06:21]} 24. Ba2 {[%emt 0:01:30]} h6 {[%emt 0:02:49]} 25. Re2 {[%emt 0:01:30]} Kh7 {[%emt 0:02:07]} 26. Rae1 {[%emt 0:01:30]} Bc5 {[%emt 0:01:13]} 27. Qe5 {[%emt 0:00:30]} Qf7 {[%emt 0:00:37]} 28. Nd4 {[%emt 0:09:26]} Rxf2 {[%emt 0:01:07]} 29. Qxe6 {[%emt 0:00:36]} Rf1+ {[%emt 0:00:50]} 30. Rxf1 {[%emt 0:00:40]} Qxf1+ {[%emt 0:00:04]} 31. Kh2 {[%emt 0:00:05]} Rf6 {[%emt 0:00:05]} 32. Qe3 {[%emt 0:01:26]} Bd6+ {[%emt 0:00:03]} 33. g3 {[%emt 0:00:05]} Bd7 {[%emt 0:00:06]} 34. Rg2 {[%emt 0:01:10]} h5 {[%emt 0:00:54]} 35. Qe2 {[%emt 0:07:07]} Qa1 {[%emt 0:01:01]} 36. Bxd5 {[%emt 0:01:12]} h4 {[%emt 0:00:37]} 37. Rg1 {[%emt 0:00:46]} hxg3+ {[%emt 0:01:19]} 38. Kh1 {[%emt 0:01:38]} Qxg1+ {[%emt 0:00:05]} 39. Kxg1 {[%emt 0:00:38]} Rf2 {[%emt 0:00:01]} 40. Qe4 {[%emt 0:02:56]} Rf4 {[%emt 0:03:17]} 41. Qd3 {[%emt 0:00:58]} Bxh3 {[%emt 0:00:37]} 42. Bg2 {[%emt 0:00:21]} Bxg2 {[%emt 0:00:32]} 43. Kxg2 {[%emt 0:00:11]} Rf2+ {[%emt 0:00:02]} 44. Kg1 {[%emt 0:00:32]} Rxb2 {[%emt 0:00:03]} 45. Ne6 {[%emt 0:01:24]} Bxa3 {[%emt 0:01:48]} 46. Qxg3 {[%emt 0:00:36]} Rb3 {[%emt 0:01:26]} 47. Qh4+ {[%emt 0:00:37]} Kg8 {[%emt 0:00:08]} 48. Qf6 {[%emt 0:00:20]} Bd6 {[%emt 0:00:38]} 1-0

[Event "CRO-ch Youth U17 2020"]
[Site "Vinkovci"]
[Date "2020.07.30"]
[Round "4.6"]
[White "Juric, Ester"]
[Black "Bedic, Noemi"]
[Result "1-0"]
[ECO "A45"]
[WhiteElo "1663"]
[BlackElo "1712"]
[Annotator "NA"]
[PlyCount "87"]
[EventDate "2020.07.28"]
[EventType "swiss"]
[EventCountry "CRO"]
[SourceTitle "playchess.com"]
[Source "ChessBase"]
[SourceQuality "1"]
[TimeControl "5400+30"]

1. d4 {[%emt 0:00:30]} Nf6 {[%emt 0:00:30]} 2. Bg5 {[%emt 0:00:00]} g6 {[%emt 0:05:30]} 3. Bxf6 {[%emt 0:01:00]} exf6 {[%emt 0:05:30]} 4. e3 {[%emt 0:00:00]} Bg7 {[%emt 0:00:30]} 5. g3 {[%emt 0:01:00]} O-O {[%emt 0:00:30]} 6. Bg2 {[%emt 0:00:00]} d5 {[%emt 0:02:30]} 7. h4 {[%emt 0:04:00]} h5 {[%emt 0:02:30]} 8. Ne2 {[%emt 0:01:30]} c6 {[%emt 0:02:30]} 9. Nd2 {[%emt 0:05:30]} Re8 {[%emt 0:05:30]} 10. Nf4 {[%emt 0:07:30]} Qb6 {[%emt 0:07:30]} 11. Nb3 {[%emt 0:19:30]} a5 {[%emt 0:00:30]} 12. Rb1 {[%emt 0:15:30]} Na6 {[%emt 0:06:30]} 13. a3 {[%emt 0:00:30]} a4 {[%emt 0:17:30]} 14. Nd2 {[%emt 0:00:30]} Qxd4 {[%emt 0:03:30]} 15. O-O {[%emt 0:05:30]} Qb6 {[%emt 0:04:30]} 16. Re1 {[%emt 0:01:30]} f5 {[%emt 0:03:30]} 17. Nd3 {[%emt 0:06:30]} Bd7 {[%emt 0:08:30]} 18. c4 {[%emt 0:07:30]} Nc7 {[%emt 0:06:58]} 19. cxd5 {[%emt 0:01:39]} Nxd5 {[%emt 0:01:31]} 20. Nc4 {[%emt 0:01:08]} Qc7 {[%emt 0:02:16]} 21. Rc1 {[%emt 0:04:00]} Be6 {[%emt 0:01:32]} 22. Qc2 {[%emt 0:04:08]} b5 {[%emt 0:02:06]} 23. Nd2 {[%emt 0:00:39]} Rac8 {[%emt 0:00:47]} 24. e4 {[%emt 0:02:15]} fxe4 {[%emt 0:00:59]} 25. Bxe4 {[%emt 0:00:09]} Ne7 {[%emt 0:04:04]} 26. Nc5 {[%emt 0:01:58]} Bd4 {[%emt 0:01:50]} 27. Nf1 {[%emt 0:01:08]} Bc4 {[%emt 0:01:17]} 28. Nd3 {[%emt 0:00:42]} Nd5 {[%emt 0:01:05]} 29. Qd2 {[%emt 0:04:47]} Nf6 {[%emt 0:01:02]} 30. Bf3 {[%emt 0:02:15]} Qb6 {[%emt 0:00:59]} 31. Rxe8+ {[%emt 0:01:14]} Rxe8 {[%emt 0:00:02]} 32. Rc2 {[%emt 0:00:09]} Rd8 {[%emt 0:00:45]} 33. Nf4 {[%emt 0:01:17]} Bxf2+ {[%emt 0:00:06]} 34. Qxf2 {[%emt 0:00:03]} Qa5 {[%emt 0:01:08]} 35. Rd2 {[%emt 0:00:38]} Re8 {[%emt 0:00:33]} 36. Ne3 {[%emt 0:00:46]} Ne4 {[%emt 0:00:48]} 37. Bxe4 {[%emt 0:00:17]} Rxe4 {[%emt 0:00:00]} 38. Nxc4 {[%emt 0:00:36]} Rxc4 {[%emt 0:00:01]} 39. Qe1 {[%emt 0:00:17]} Qb6+ {[%emt 0:00:56]} 40. Kg2 {[%emt 0:00:37]} Qb7 {[%emt 0:00:59]} 41. Kh2 {[%emt 0:00:47]} Qc7 {[%emt 0:00:26]} 42. Qe8+ {[%emt 0:00:19]} Kg7 {[%emt 0:00:41]} 43. Ne6+ {[%emt 0:00:15]} fxe6 {[%emt 0:00:10]} 44. Rd7+ {[%emt 0:00:03]} 1-0

[Event "CRO-ch Youth U17 2020"]
[Site "Vinkovci"]
[Date "2020.07.30"]
[Round "4.7"]
[White "Dejanovic, Tereza"]
[Black "Randic, Petra"]
[Result "1-0"]
[ECO "B01"]
[WhiteElo "1788"]
[BlackElo "1794"]
[Annotator "NA"]
[PlyCount "133"]
[EventDate "2020.07.28"]
[EventType "swiss"]
[EventCountry "CRO"]
[SourceTitle "playchess.com"]
[Source "ChessBase"]
[SourceQuality "1"]
[TimeControl "5400+30"]

1. e4 {[%emt 0:00:30]} Nc6 {[%emt 0:00:30]} 2. d4 {[%emt 0:00:00]} d5 {[%emt 0:00:30]} 3. exd5 {[%emt 0:00:00]} Qxd5 {[%emt 0:00:30]} 4. Nf3 {[%emt 0:01:30]} Bg4 {[%emt 0:00:30]} 5. Be2 {[%emt 0:00:30]} O-O-O {[%emt 0:01:30]} 6. c3 {[%emt 0:03:30]} e5 {[%emt 0:04:30]} 7. dxe5 {[%emt 0:14:30]} Qxd1+ {[%emt 0:01:30]} 8. Bxd1 {[%emt 0:01:30]} Nxe5 {[%emt 0:02:30]} 9. O-O {[%emt 0:01:30]} Nxf3+ {[%emt 0:04:30]} 10. Bxf3 {[%emt 0:01:30]} Bxf3 {[%emt 0:00:30]} 11. gxf3 {[%emt 0:00:30]} Rd6 {[%emt 0:06:30]} 12. Be3 {[%emt 0:05:30]} Nh6 {[%emt 0:02:30]} 13. Nd2 {[%emt 0:05:30]} Nf5 {[%emt 0:03:30]} 14. Bf4 {[%emt 0:00:30]} Rg6+ {[%emt 0:03:30]} 15. Kh1 {[%emt 0:00:30]} Bd6 {[%emt 0:10:30]} 16. Bg3 {[%emt 0:03:30]} Re8 {[%emt 0:04:30]} 17. Rae1 {[%emt 0:04:30]} Rge6 {[%emt 0:03:30]} 18. Rxe6 {[%emt 0:00:30]} Rxe6 {[%emt 0:01:30]} 19. Ne4 {[%emt 0:01:30]} Be7 {[%emt 0:07:30]} 20. Rd1 {[%emt 0:02:30]} Nh4 {[%emt 0:04:30]} 21. Bxh4 {[%emt 0:06:30]} Bxh4 {[%emt 0:00:30]} 22. Rd2 {[%emt 0:00:30]} b6 {[%emt 0:01:30]} 23. c4 {[%emt 0:04:30]} Re5 {[%emt 0:03:30]} 24. b3 {[%emt 0:03:30]} Be7 {[%emt 0:01:30]} 25. Kg2 {[%emt 0:02:30]} Bb4 {[%emt 0:00:30]} 26. Re2 {[%emt 0:02:30]} Kd7 {[%emt 0:05:30]} 27. Re3 {[%emt 0:05:30]} f5 {[%emt 0:05:30]} 28. Ng3 {[%emt 0:05:30]} Rxe3 {[%emt 0:03:43]} 29. fxe3 {[%emt 0:00:00]} f4 {[%emt 0:01:04]} 30. exf4 {[%emt 0:02:00]} Bc3 {[%emt 0:03:50]} 31. Ne4 {[%emt 0:03:58]} Bd4 {[%emt 0:02:19]} 32. Kg3 {[%emt 0:01:26]} h6 {[%emt 0:02:34]} 33. Kg4 {[%emt 0:00:42]} Ke6 {[%emt 0:01:00]} 34. Ng3 {[%emt 0:08:44]} Bg1 {[%emt 0:03:51]} 35. h4 {[%emt 0:02:58]} Bf2 {[%emt 0:01:08]} 36. f5+ {[%emt 0:02:05]} Ke7 {[%emt 0:01:16]} 37. Nh5 {[%emt 0:00:31]} Kf7 {[%emt 0:00:20]} 38. Nf4 {[%emt 0:01:06]} a6 {[%emt 0:01:47]} 39. Nd5 {[%emt 0:00:34]} c6 {[%emt 0:00:15]} 40. Nb4 {[%emt 0:00:14]} a5 {[%emt 0:00:43]} 41. Nxc6 {[%emt 0:00:30]} Kf6 {[%emt 0:00:19]} 42. h5 {[%emt 0:01:43]} Be3 {[%emt 0:00:31]} 43. b4 {[%emt 0:02:26]} axb4 {[%emt 0:01:18]} 44. Nxb4 {[%emt 0:00:01]} Bc5 {[%emt 0:00:56]} 45. Nc6 {[%emt 0:00:42]} Be3 {[%emt 0:00:26]} 46. a4 {[%emt 0:00:20]} Bd2 {[%emt 0:00:47]} 47. Nd8 {[%emt 0:00:58]} Be3 {[%emt 0:01:10]} 48. Ne6 {[%emt 0:00:07]} Bd2 {[%emt 0:00:15]} 49. c5 {[%emt 0:00:12]} bxc5 {[%emt 0:00:32]} 50. Nxc5 {[%emt 0:00:00]} Ke5 {[%emt 0:00:18]} 51. Ne6 {[%emt 0:01:12]} Kf6 {[%emt 0:00:08]} 52. f4 {[%emt 0:00:14]} Bc3 {[%emt 0:00:11]} 53. Nc5 {[%emt 0:00:15]} Bb4 {[%emt 0:01:07]} 54. Ne4+ {[%emt 0:01:13]} Kf7 {[%emt 0:00:45]} 55. Kf3 {[%emt 0:00:23]} Ke7 {[%emt 0:00:28]} 56. Ke3 {[%emt 0:00:09]} Ba5 {[%emt 0:00:40]} 57. Nd2 {[%emt 0:00:47]} Kf6 {[%emt 0:00:28]} 58. Nc4 {[%emt 0:00:13]} Bb4 {[%emt 0:00:39]} 59. Ke4 {[%emt 0:00:02]} Bc5 {[%emt 0:00:28]} 60. a5 {[%emt 0:00:11]} Ke7 {[%emt 0:00:21]} 61. a6 {[%emt 0:00:54]} Ba7 {[%emt 0:00:26]} 62. Ne5 {[%emt 0:00:17]} Kd6 {[%emt 0:00:29]} 63. f6 {[%emt 0:00:30]} gxf6 {[%emt 0:00:15]} 64. Nf7+ {[%emt 0:00:05]} Ke7 {[%emt 0:00:40]} 65. Nxh6 {[%emt 0:00:04]} Ke6 {[%emt 0:00:11]} 66. Nf5 {[%emt 0:00:10]} Bc5 {[%emt 0:00:25]} 67. h6 {[%emt 0:00:12]} 1-0

[Event "CRO-ch Youth U17 2020"]
[Site "Vinkovci"]
[Date "2020.07.30"]
[Round "4.8"]
[White "Bevanda, Ema"]
[Black "Smetisko, Lucija"]
[Result "1-0"]
[ECO "D02"]
[WhiteElo "1554"]
[BlackElo "1567"]
[Annotator "NA"]
[PlyCount "87"]
[EventDate "2020.07.28"]
[EventType "swiss"]
[EventCountry "CRO"]
[SourceTitle "playchess.com"]
[Source "ChessBase"]
[SourceQuality "1"]
[TimeControl "5400+30"]

1. d4 {[%emt 0:00:30]} d5 {[%emt 0:00:30]} 2. Bf4 {[%emt 0:00:30]} e6 {[%emt 0:00:30]} 3. e3 {[%emt 0:00:00]} c5 {[%emt 0:01:30]} 4. Nf3 {[%emt 0:01:00]} c4 {[%emt 0:00:00]} 5. c3 {[%emt 0:00:30]} Nf6 {[%emt 0:01:00]} 6. Ne5 {[%emt 0:01:30]} Be7 {[%emt 0:06:30]} 7. Nd2 {[%emt 0:01:30]} Nbd7 {[%emt 0:02:30]} 8. Qf3 {[%emt 0:01:30]} Nxe5 {[%emt 0:04:30]} 9. dxe5 {[%emt 0:00:30]} Nd7 {[%emt 0:00:30]} 10. Qg4 {[%emt 0:02:30]} g5 {[%emt 0:04:30]} 11. Bxg5 {[%emt 0:12:30]} Bxg5 {[%emt 0:00:30]} 12. f4 {[%emt 0:00:00]} h5 {[%emt 0:03:30]} 13. Qxg5 {[%emt 0:01:00]} Qxg5 {[%emt 0:00:30]} 14. fxg5 {[%emt 0:00:30]} Nxe5 {[%emt 0:00:30]} 15. Nf3 {[%emt 0:00:30]} Nd7 {[%emt 0:07:30]} 16. h4 {[%emt 0:02:30]} Nc5 {[%emt 0:01:30]} 17. Ne5 {[%emt 0:11:30]} Ne4 {[%emt 0:03:30]} 18. Rh3 {[%emt 0:00:30]} f6 {[%emt 0:13:30]} 19. gxf6 {[%emt 0:05:30]} Nxf6 {[%emt 0:00:00]} 20. Rg3 {[%emt 0:01:30]} Rg8 {[%emt 0:11:00]} 21. Rxg8+ {[%emt 0:00:30]} Nxg8 {[%emt 0:00:00]} 22. Be2 {[%emt 0:00:30]} Nf6 {[%emt 0:01:00]} 23. O-O-O {[%emt 0:00:30]} Bd7 {[%emt 0:02:30]} 24. Rf1 {[%emt 0:02:30]} Ke7 {[%emt 0:02:30]} 25. Rxf6 {[%emt 0:12:30]} Kxf6 {[%emt 0:01:30]} 26. Nxd7+ {[%emt 0:07:30]} Kf5 {[%emt 0:03:30]} 27. Bxh5 {[%emt 0:00:30]} b6 {[%emt 0:24:55]} 28. g4+ {[%emt 0:02:30]} Ke4 {[%emt 0:00:05]} 29. Kd2 {[%emt 0:01:30]} Kf3 {[%emt 0:01:01]} 30. g5+ {[%emt 0:00:30]} Kg3 {[%emt 0:00:41]} 31. g6 {[%emt 0:00:30]} Kxh4 {[%emt 0:02:11]} 32. g7 {[%emt 0:00:30]} Rg8 {[%emt 0:00:08]} 33. Bf7 {[%emt 0:05:30]} Rxg7 {[%emt 0:00:01]} 34. Bxe6 {[%emt 0:00:00]} Re7 {[%emt 0:02:17]} 35. Nf8 {[%emt 0:02:00]} Re8 {[%emt 0:00:38]} 36. Ng6+ {[%emt 0:00:30]} Kg3 {[%emt 0:00:29]} 37. Bxd5 {[%emt 0:00:30]} Rd8 {[%emt 0:00:26]} 38. e4 {[%emt 0:00:30]} Rd6 {[%emt 0:00:29]} 39. Ne5 {[%emt 0:00:30]} Kf4 {[%emt 0:00:34]} 40. Nxc4 {[%emt 0:00:30]} Rh6 {[%emt 0:00:28]} 41. Kc2 {[%emt 0:00:30]} Rg6 {[%emt 0:00:30]} 42. Kb3 {[%emt 0:00:30]} b5 {[%emt 0:00:30]} 43. Na5 {[%emt 0:01:30]} a6 {[%emt 0:00:15]} 44. a3 {[%emt 0:06:24]} 1-0

[Event "CRO-ch Youth U17 2020"]
[Site "Vinkovci"]
[Date "2020.08.01"]
[Round "5.1"]
[White "Levacic, Matej"]
[Black "Troselj, Ivan"]
[Result "0-1"]
[ECO "D37"]
[WhiteElo "2040"]
[BlackElo "1857"]
[Annotator "ChessBase"]
[PlyCount "78"]
[EventDate "2020.07.28"]
[EventType "swiss"]
[EventCountry "CRO"]
[TimeControl "5400+30"]

1. d4 {[%emt 0:00:30]} Nf6 {[%emt 0:00:30]} 2. Nf3 {[%emt 0:00:30]} d5 {[%emt 0:00:00]} 3. c4 {[%emt 0:00:00]} e6 {[%emt 0:00:00]} 4. Nc3 {[%emt 0:00:00]} Be7 {[%emt 0:00:30]} 5. Bf4 {[%emt 0:00:30]} O-O {[%emt 0:00:00]} 6. e3 {[%emt 0:00:00]} Nbd7 {[%emt 0:00:00]} 7. Be2 {[%emt 0:01:00]} b6 {[%emt 0:01:30]} 8. cxd5 {[%emt 0:00:30]} exd5 {[%emt 0:00:30]} 9. O-O {[%emt 0:02:30]} Bb7 {[%emt 0:01:30]} 10. Bd3 {[%emt 0:06:30]} c5 {[%emt 0:07:30]} 11. Ne5 {[%emt 0:06:30]} Nxe5 {[%emt 0:05:30]} 12. dxe5 {[%emt 0:00:30]} Ne4 {[%emt 0:00:30]} 13. Bxe4 {[%emt 0:06:30]} dxe4 {[%emt 0:00:30]} 14. Qg4 {[%emt 0:03:30]} Qc8 {[%emt 0:02:30]} 15. Qg3 {[%emt 0:02:30]} Qf5 {[%emt 0:00:30]} 16. Bh6 {[%emt 0:07:30]} Qg6 {[%emt 0:00:30]} 17. Qxg6 {[%emt 0:00:00]} hxg6 {[%emt 0:00:30]} 18. Bf4 {[%emt 0:00:00]} Rfd8 {[%emt 0:00:30]} 19. Rfd1 {[%emt 0:00:30]} Rd3 {[%emt 0:01:30]} 20. Nb5 {[%emt 0:05:30]} g5 {[%emt 0:02:30]} 21. Bg3 {[%emt 0:00:00]} Rad8 {[%emt 0:01:30]} 22. Nd6 {[%emt 0:05:00]} Bxd6 {[%emt 0:00:30]} 23. exd6 {[%emt 0:00:30]} c4 {[%emt 0:00:30]} 24. Rdc1 {[%emt 0:05:30]} Bd5 {[%emt 0:02:30]} 25. a4 {[%emt 0:07:30]} f6 {[%emt 0:05:30]} 26. a5 {[%emt 0:03:30]} b5 {[%emt 0:00:30]} 27. a6 {[%emt 0:00:30]} Kf7 {[%emt 0:03:30]} 28. Kf1 {[%emt 0:00:30]} Ke6 {[%emt 0:00:30]} 29. Ke2 {[%emt 0:02:30]} g4 {[%emt 0:00:30]} 30. Rh1 {[%emt 0:01:30]} Rc8 {[%emt 0:07:30]} 31. Rhc1 {[%emt 0:02:30]} b4 {[%emt 0:02:30]} 32. Ra5 {[%emt 0:04:30]} Rb3 {[%emt 0:04:30]} 33. Rc2 {[%emt 0:04:30]} c3 {[%emt 0:00:30]} 34. bxc3 {[%emt 0:04:03]} bxc3 {[%emt 0:00:30]} 35. Ra1 {[%emt 0:02:44]} Rb2 {[%emt 0:00:00]} 36. Rac1 {[%emt 0:03:12]} Bb3 {[%emt 0:00:00]} 37. Rxb2 {[%emt 0:03:13]} cxb2 {[%emt 0:00:30]} 38. Rxc8 {[%emt 0:01:51]} b1=Q {[%emt 0:00:30]} 39. Re8+ {[%emt 0:00:26]} Kf5 {[%emt 0:00:30]} 0-1